Cogmind - Beta 13 @@@ ROGUE MODE // 2024.04.02 @ 16:23:34 Player: SLUGGY Result: Self-destructed Performance ------------- Evolutions (2) 1000 Regions Visited (5) 1000 Robots Destroyed (36) 180 Value Destroyed (903) 903 Prototype IDs (1) 20 Alien Tech Used (0) 0 Bonus (-140) -140 TOTAL SCORE: 2963 Bonus ------- Friendly Fire -140 Cogmind --------- Core Integrity 428/550 Matter 279/300 Energy 38/100 System Corruption 0% Temperature Cool (0) Movement Core (200) Ox3 Location -8/Materials Parts ------- > --- POWER (1) -------- (None) > --- PROPULSION (4) --- (None) > --- UTILITY (4) ------ Medium Storage Unit Sensor Array Signal Interpreter > --- WEAPON (2) ------- (None) > --- INVENTORY (10) --- Light Ion Engine Hover Unit Hardened Light Armor Plating Drone Bay (2/2) Peak State ------------ > --- POWER ------------ Light Nuclear Core > --- PROPULSION ------- Hover Unit Hover Unit Hover Unit Improved Hover Unit > --- UTILITY ---------- Medium Storage Unit Sensor Array Signal Interpreter Shield Generator > --- WEAPON ----------- Beamcaster Beam Cannon > --- INVENTORY -------- Hover Unit Heat Sink Hardened Light Armor Plating Drone Bay EM Pulse Cannon [Rating: 20] Favorites ----------- Power Light Ion Engine Engine Light Ion Engine Power Core Light Nuclear Core Propulsion Hover Unit Wheel Wheel Hover Unit Hover Unit Utility Small Storage Unit Device Seismic Detector Storage Small Storage Unit Processor Signal Interpreter Weapon Light Assault Rifle Energy Gun Beamcaster Energy Cannon Beam Cannon Ballistic Gun Light Assault Rifle Launcher Rocket Launcher Build | -11 -10 -10 -9 -9 -8 ------- Run | Yrd Mat Min Mat Sto Mat Slots Evolved 4 | . . . 2 . 2 Power . | . . . . . . Propulsion 2 | . . . 1 . 1 Utility 2 | . . . 1 . 1 Weapon . | . . . . . . Parts Attached 47 | 7 6 4 12 6 12 Power 6 | 1 1 . 2 1 1 Engine 5 | 1 1 . 2 1 . Core 1 | . . . . . 1 Reactor . | . . . . . . Propulsion 18 | 2 5 . 4 2 5 Treads . | . . . . . . Leg . | . . . . . . Wheel 2 | 2 . . . . . Hover 16 | . 5 . 4 2 5 Flight . | . . . . . . Utility 14 | 2 . 2 4 3 3 Device 10 | 1 . 2 2 3 2 Storage 2 | 1 . . . . 1 Processor 2 | . . . 2 . . Hackware . | . . . . . . Protection . | . . . . . . Artifact . | . . . . . . Weapon 9 | 2 . 2 2 . 3 Energy Gun 3 | . . . 1 . 2 Energy Cannon 3 | . . 1 1 . 1 Ballistic Gun 2 | 2 . . . . . Ballistic Cannon . | . . . . . . Launcher 1 | . . 1 . . . Special Weapon . | . . . . . . Impact Weapon . | . . . . . . Slashing Weapon . | . . . . . . Piercing Weapon . | . . . . . . Special Melee Weapon . | . . . . . . Unidentified Prototypes 1 | . . . . . 1 Parts Lost 14 | . 2 . . . 12 Power 2 | . 1 . . . 1 Propulsion 6 | . 1 . . . 5 Utility 2 | . . . . . 2 Weapon 4 | . . . . . 4 Highest Loss Streak 11 | . 1 . . . 11 To Critical Strikes . | . . . . . . Average Slot Usage (%) 97 | . 98 97 96 100 96 Engine 10 | . 13 14 11 11 3 Wheel 3 | . 8 . . . . Hover 27 | . 18 28 33 33 33 Device 13 | . 14 14 12 11 17 Storage 11 | . 14 14 11 11 9 Processor 5 | . . . 7 11 9 Energy Gun 5 | . . . 9 11 8 Energy Cannon 6 | . . 1 11 11 9 Ballistic Gun 11 | . 28 24 . . . Naked Turns . | . . . . . . Heaviest Build 26 | 11 11 12 18 17 26 Greatest Support 25 | 20 20 12 18 18 25 Greatest Overweight (x) 1 | . 1 . . . 1 Average Overweight (x) . | . . . . . . Largest Inventory Capacity 10 | 8 8 8 8 8 10 Average Capacity 8 | 7 8 8 8 8 9 Most Carried 8 | 5 8 8 8 8 7 Average Carried 6 | 2 6 7 7 7 6 Final Capacity 10 | 8 8 8 8 8 10 Final Carried 8 | 3 8 8 8 8 4 Class Distribution -------------------- 85% | Mutant 14% | Scavenger-Mutant Dominant Class ---------------- Mutant | -10/Materials Mutant | -10/Mines Mutant | -9/Materials Scavenger-Mutant | -9/Storage Mutant | -8/Materials Resources | -11 -10 -10 -9 -9 -8 ----------- Run | Yrd Mat Min Mat Sto Mat Matter Collected 679 | 205 215 . 150 60 49 Remotely . | . . . . . . Salvage Created 1286 | 105 341 . 347 345 148 Parts 75 | 6 25 . 18 23 3 Haulers Intercepted . | . . . . . . Recyclers Shooed . | . . . . . . Parts Field Recycled . | . . . . . . Retrieved Matter . | . . . . . . Parts Self-Destructed . | . . . . . . Prevented . | . . . . . . Kills | -11 -10 -10 -9 -9 -8 ------- Run | Yrd Mat Min Mat Sto Mat Combat Hostiles Destroyed 21 | . 6 . 5 7 3 Guns 14 | . 6 . 3 4 1 Cannons 6 | . . . 2 3 1 Classes Destroyed 10 | 2 4 . 1 3 . Worker 3 | . 2 . 1 . . Builder 1 | . . . . 1 . Tunneler 2 | 1 . . 1 . . Recycler 2 | 1 . . . 1 . Mechanic 1 | . . . . 1 . Operator 1 | . 1 . . . . Watcher 4 | . 2 . 1 1 . Swarmer 4 | . . . . 4 . Grunt 11 | . 6 . 2 . 3 Sentry 6 | . . . 3 3 . Thug 1 | . . . 1 . . Best Kill Streak 5 | 2 5 . 3 4 1 Combat Bots Only 4 | . 2 . 2 4 1 Max Kills in Single Turn 2 | 1 1 . 1 2 1 Gunslinging . | . . . . . . Exploded . | . . . . . . Melee . | . . . . . . Uniques/NPCs Destroyed . | . . . . . . Combat | -11 -10 -10 -9 -9 -8 -------- Run | Yrd Mat Min Mat Sto Mat Hostile Shots Fired 140 | . 36 1 20 18 65 Missed 44 | . 9 1 7 5 22 Damage Taken 1374 | . 368 27 225 104 650 Core 332 | . 117 . 61 32 122 Absorbed by Shields 57 | . . . . . 57 Core Remaining (%) 76 | 100 . 53 . 76 . Volleys Fired 120 | 6 44 . 36 20 14 Largest 2 | 2 2 . 2 2 2 Hottest 135 | 40 40 . 135 135 135 Shots Fired 222 | 12 88 . 63 36 23 Gun 166 | 12 88 . 36 20 10 Cannon 56 | . . . 27 16 13 Launcher . | . . . . . . Special . | . . . . . . Kinetic 100 | 12 88 . . . . Thermal 121 | . . . 63 36 22 Explosive . | . . . . . . Electromagnetic 1 | . . . . . 1 Robot Hit Streak 10 | 4 10 . 7 4 5 Robot Miss Streak 3 | 2 3 . 3 3 2 Penetration Max . | . . . . . . Secondary Targets 1 | . 1 . . . . Max Gunslinging Chain 1 | . 1 . . . . Shots Hit Robots 129 | 7 58 . 34 17 13 Core Hits 61 | 4 27 . 11 12 7 Critical Kills 2 | . 1 . . . 1 Critical Parts Destroyed . | . . . . . . Critical Strikes 5 | . 1 . 1 1 2 Burn 3 | . . . 1 1 1 Meltdown 1 | . . . . . 1 Destroy 1 | . 1 . . . . Melee Attacks . | . . . . . . Impact . | . . . . . . Slashing . | . . . . . . Piercing . | . . . . . . Sneak Attacks . | . . . . . . Combat Hostiles . | . . . . . . Follow-up Attacks . | . . . . . . Damage Inflicted 1844 | 55 525 . 661 348 255 Guns 1228 | 55 509 . 314 208 142 Cannons 600 | . . . 347 140 113 Explosions . | . . . . . . Melee . | . . . . . . Ramming 16 | . 16 . . . . Kinetic 564 | 55 509 . . . . Thermal 1239 | . . . 661 348 230 Explosive . | . . . . . . Electromagnetic 25 | . . . . . 25 Impact . | . . . . . . Slashing . | . . . . . . Piercing . | . . . . . . Highest Corruption . | . . . . . . Average Corruption . | . . . . . . Corruption Purged . | . . . . . . Corruption Blocked . | . . . . . . Overload Shots . | . . . . . . Overflow Damage 7 | . . . 7 . . Projectiles 7 | . . . 7 . . Explosions . | . . . . . . Melee . | . . . . . . Knockbacks . | . . . . . . Impact . | . . . . . . Kinetic . | . . . . . . Secondary . | . . . . . . Self-Inflicted Damage 8 | . 8 . . . . Shots . | . . . . . . Rammed 1 | . 1 . . . . Targets Rammed 1 | . 1 . . . . Kicked . | . . . . . . Crushed . | . . . . . . Highest Temperature 358 | . 20 . 358 301 215 Average Temperature 103 | . 6 . 137 102 95 Received Heat Transfer 684 | . 201 . 78 . 405 Siege Activations . | . . . . . . Robots Corrupted . | . . . . . . Combat Hostiles . | . . . . . . Parts Fried . | . . . . . . Impact Corruptions . | . . . . . . Robots Melted 1 | . . . . . 1 Combat Hostiles 1 | . . . . . 1 Parts Melted 8 | . . . 4 . 4 Heat Transferred 2627 | . . . 1369 740 518 Parts Sabotaged . | . . . . . . Parts Stolen . | . . . . . . Parts Stripped . | . . . . . . Power Chain Reactions . | . . . . . . Alert | -11 -10 -10 -9 -9 -8 ------- Run | Yrd Mat Min Mat Sto Mat Peak Influence 339 | 10 281 64 237 339 209 Initial 143 | . 6 34 24 55 143 Average 125 | 4 119 57 98 226 152 Maximum Alert Level 1 | . 1 . 1 1 1 Low Security (%) 83 | 100 77 100 94 41 99 Level 1 16 | . 22 . 5 58 . Level 2 . | . . . . . . Level 3 . | . . . . . . Level 4 . | . . . . . . Level 5 . | . . . . . . High Security . | . . . . . . Max Security . | . . . . . . Squads Dispatched 6 | . 4 . 1 . 1 Investigation 2 | . 2 . . . . Extermination . | . . . . . . Reinforcement 4 | . 2 . 1 . 1 Assault . | . . . . . . Garrison . | . . . . . . Intercept . | . . . . . . Searches Triggered . | . . . . . . Construction Impeded . | . . . . . . Haulers Reinforced . | . . . . . . Active Scanning Responses . | . . . . . . Cargo Convoy Interrupts . | . . . . . . Stealth | -11 -10 -10 -9 -9 -8 --------- Run | Yrd Mat Min Mat Sto Mat Distress Signals . | . . . . . . Communications Jammed . | . . . . . . Distress Signals . | . . . . . . Times Spotted 51 | . 19 2 15 8 7 Peak Tracking Total 5 | . 5 2 3 5 4 Tactical Retreats 3 | . 1 1 1 . . Traps | -11 -10 -10 -9 -9 -8 ------- Run | Yrd Mat Min Mat Sto Mat Traps Triggered 3 | . 1 1 1 . . Indirectly . | . . . . . . Trap Hack Attempts . | . . . . . . Triggered . | . . . . . . Disarmed . | . . . . . . Reprogrammed . | . . . . . . Reused . | . . . . . . Traps Extracted . | . . . . . . Installed . | . . . . . . Triggered . | . . . . . . Machines | -11 -10 -10 -9 -9 -8 ---------- Run | Yrd Mat Min Mat Sto Mat Machines Disabled 5 | . . . 3 2 . Max in Single Turn 1 | . . . 1 1 . Machines Repaired . | . . . . . . Machines Dismantled . | . . . . . . Machines Sabotaged . | . . . . . . Overloaded Fab Kills . | . . . . . . Hacking | -11 -10 -10 -9 -9 -8 --------- Run | Yrd Mat Min Mat Sto Mat Machines Accessed 11 | . 3 1 3 2 2 Terminals 9 | . 3 . 3 2 1 Fabricators . | . . . . . . Repair Stations . | . . . . . . Recycling Units . | . . . . . . Scanalyzers 1 | . . . . . 1 Garrison Access . | . . . . . . Total Hacks 17 | . 6 1 3 3 4 Successful 6 | . 1 1 . 2 2 Failed 11 | . 5 . 3 1 2 Catastrophic 5 | . 2 . 2 1 . Database Lockouts . | . . . . . . Manual 11 | . 6 . 3 1 1 Terminals 13 | . 6 . 3 3 1 Fabricators . | . . . . . . Repair Stations . | . . . . . . Recycling Units . | . . . . . . Scanalyzers 3 | . . . . . 3 Garrison Access . | . . . . . . Terminal Hacks 4 | . 1 1 . 2 . Open Door 3 | . . 1 . 2 . Recall Investigation 1 | . 1 . . . . Fabricator Hacks . | . . . . . . Repair Station Hacks . | . . . . . . Recycling Unit Hacks . | . . . . . . Scanalyzer 2 | . . . . . 2 Insert Component 1 | . . . . . 1 Analyze 1 | . . . . . 1 Garrison Access Hacks . | . . . . . . Unauthorized Hacks . | . . . . . . Terminals . | . . . . . . Fabricators . | . . . . . . Repair Stations . | . . . . . . Recycling Units . | . . . . . . Scanalyzers . | . . . . . . Garrison Access . | . . . . . . Data Cores Recovered . | . . . . . . Used . | . . . . . . Hacking Detections 8 | . 3 . 2 2 1 Full Trace Events 1 | . 1 . . . . Feedback Events . | . . . . . . Feedback Blocked . | . . . . . . Robot Schematics Acquired . | . . . . . . Robots Built . | . . . . . . Authchips . | . . . . . . Time . | . . . . . . Total Robot Build Rating . | . . . . . . Part Schematics Acquired 1 | . . . . . 1 Parts Built . | . . . . . . Authchips . | . . . . . . Time . | . . . . . . Total Part Build Rating . | . . . . . . Parts Repaired . | . . . . . . Time . | . . . . . . Parts Recycled . | . . . . . . Recycled Matter . | . . . . . . Retrieved Matter . | . . . . . . Retrieved Components . | . . . . . . Parts Scanalyzed 1 | . . . . . 1 Part Schematics Acquired 1 | . . . . . 1 Parts Damaged . | . . . . . . Bothacking | -11 -10 -10 -9 -9 -8 ------------ Run | Yrd Mat Min Mat Sto Mat Used RIF Installer . | . . . . . . Robots Hacked . | . . . . . . Non-combat . | . . . . . . Combat . | . . . . . . Robot Hacks Applied . | . . . . . . Relay Couplers Released . | . . . . . . Fabnet Peak Effective % . | . . . . . . Robots Rewired . | . . . . . . Allies Hacked . | . . . . . . Hacks Repelled . | . . . . . . Allies | -11 -10 -10 -9 -9 -8 -------- Run | Yrd Mat Min Mat Sto Mat Total Allies . | . . . . . . Largest Group . | . . . . . . Highest-Rated Group . | . . . . . . Highest-Rated Ally . | . . . . . . Total Orders . | . . . . . . Ally Attacks . | . . . . . . Total Damage . | . . . . . . Kills . | . . . . . . Allies Corrupted . | . . . . . . Allies Melted . | . . . . . . Intel | -11 -10 -10 -9 -9 -8 ------- Run | Yrd Mat Min Mat Sto Mat Robot Analysis Total . | . . . . . . Derelict Logs Recovered 1 | . . 1 . . . Drone Launches . | . . . . . . Drone Recoveries . | . . . . . . Exploration | -11 -10 -10 -9 -9 -8 ------------- Run | Yrd Mat Min Mat Sto Mat Turns Passed 1964 | 68 661 128 501 256 350 Spaces Moved 1699 | 49 533 204 458 288 167 Core 11 | 11 . . . . . Treads . | . . . . . . Legs . | . . . . . . Wheels 217 | 38 179 . . . . Hover 1471 | . 354 204 458 288 167 Flight . | . . . . . . Fastest Speed 48 | 50 56 56 52 52 48 Average Speed 58 | 73 66 56 52 52 63 Slowest Speed 120 | 80 120 56 52 52 112 Overloaded Moves . | . . . . . . Propulsion Burnouts . | . . . . . . Robots Hopped . | . . . . . . Cave-ins Triggered . | . . . . . . Exploration Rate (%) 32 | 3 44 61 29 40 17 Regions Visited 5 Branch Regions 2 Pre-discovered Areas . | . . . . . . Known Exits Taken 2 | . . . 1 1 . Unknown Exits Taken 3 | 1 1 1 . . . Scrap Searched 1 | . . 1 . . . Spaces Dug . | . . . . . . Terrain Destroyed . | . . . . . . Melee . | . . . . . . Projectile . | . . . . . . AOE . | . . . . . . Terrain Rammed . | . . . . . . Walls Destroyed . | . . . . . . Machines Disabled . | . . . . . . Actions | -11 -10 -10 -9 -9 -8 --------- Run | Yrd Mat Min Mat Sto Mat Total 2466 | 71 774 219 658 357 387 Wait 528 | . 167 . 139 35 187 Move 1694 | 48 532 203 457 287 167 Hop . | . . . . . . Pick Up 44 | 10 15 5 6 4 4 Fast Attach 3 | . . 1 2 . . Attach 26 | 7 4 2 4 . 9 Detach 2 | . . . 1 . 1 Swap 18 | . 2 1 6 6 3 Drop 30 | . 9 7 7 5 2 Fire 120 | 6 44 . 36 20 14 Melee . | . . . . . . Ram 1 | . 1 . . . . Kick . | . . . . . . Crush . | . . . . . . Escape Stasis . | . . . . . . Rewire . | . . . . . . Trap . | . . . . . . Miscellaneous . | . . . . . . Route ------- -11/Scrapyard -10/Materials -10/Mines (discovered 2 exits: *Mat x2) -9/Materials (discovered 2 exits: [*Min] / *Sto) -9/Storage -8/Materials History --------- Turn | Location | Event 3 | -11/Scrapyard | Discovered new exit (range 15) 69 | -11/Scrapyard | Entered Materials 301 | -10/Materials | Build established: Mutant 511 | -10/Materials | Discovered new exit (range 12) 730 | -10/Materials | Entered Mines 737 | -10/Mines | Discovered new exit (range 16) 809 | -10/Mines | Met a Derelict who couldn't figure out how to use a Trap Extractor 839 | -10/Mines | Received a Rocket Launcher from a helpful Derelict 852 | -10/Mines | Discovered new exit (range 11) 853 | -10/Mines | Learned Materials terminal intel 858 | -10/Mines | Entered Materials 858 | -9/Materials | Evolved 2 slots: Propulsion x1, Utility x1 859 | -9/Materials | Loaded intel: 12 terminal locations 1332 | -9/Materials | Discovered new exit (range 12) 1341 | -9/Materials | Discovered new exit (range 15) 1359 | -9/Materials | Identified exit to Storage 1359 | -9/Materials | Entered Storage 1606 | -9/Storage | Discovered new exit (range 16) 1614 | -9/Storage | Identified exit to Materials 1615 | -9/Storage | Entered Materials 1615 | -8/Materials | Evolved 2 slots: Propulsion x1, Utility x1 1965 | -8/Materials | Self-destructed Last Messages --------------- 01864_ K-01 Serf cleans the Processing Tank. 01914_ G-47 Trooper suffers critical hit (Meltdown). 01914_ Particle Gun melted. 01914_ Lgt. Nuclear Core melted. 01921_ Critical hit (Burn: +27). 01924_ Shield Generator destroyed. 01939_ Imp. Heat Sink melted. 01939_ G-47 Trooper destroyed. 01941_ Hvy. Particle Gun destroyed. 01942_ Beam Cannon destroyed. 01943_ Imp. Hover Unit destroyed. 01944_ Hover Unit destroyed. 01947_ R-06 Scavenger collects Aluminum Leg. 01948_ Lgt. Nuclear Core destroyed. 01948_ Critical hit (Burn: +37). 01949_ Beamcaster destroyed. 01952_ Heat Sink destroyed. 01953_ Hover Unit destroyed. 01954_ R-06 Scavenger collects Aluminum Leg. 01964_ EM Pulse Cannon destroyed. Map ----- +----------------------------------------------------+ | ?????????????????????????????????????? | | ?????????????????????????????????????? | | ?????????????????????????????????????? | | ?????????????????????????????????????? | | ?????????????????????????????????????? | | ?????????????????????????????????????? | | ?????????????????????????????????????? | | ?????????????????????????????????????? | | ?????????????????????????????????????? | | ?????????????????????????????????????? | | ?????????????????????????????????????? | | ?????????????????????????????????????? | | ?????????????????????????????????????? | | ?????????????????????????????????????? | | ?????????????????????????????????????? | | ?????????????????????????????????????? | | ?????????????????????????????????????? | | ?????????????????????????????????????? | | ####???????????? ??????????????????? | | = ?????????# ??????????????????? | | T ???????# #?????????????????? | | #??????# #?????????????????? | | #??????# #?????????????????? | | #??????# ##########????????? | | ! """ #??????# # #????????? | | """ #??????# # @ !#????????? | | """ #??????# #""" #????????? | | ?? ?# ?????# #""" #????????? | | ####+#####/##### #""" #????????? | | #"""g g #????????? | | % #"""r g #????????? | | ######## #### # #????????? | | ###????#+#??# # ! #????????? | | " #??? ?# #r########????????? | | S #?"" + #?????????????? | | # "" !/ # #?????????????? | | # "T / ########"######??????????? | | # "" #?# / #??????????? | | " # "" #?# #??????????? | | " # #?# %#??????????? | | " # #?# #??????????? | | # #########?# ! #??????????? | | ###???????????# * #??????????? | | ??????????????# ! #??????????? | | ??????????????#############??????????? | | | | | | | | | | | +----------------------------------------------------+ Best States ------------- Heat Dissipation 41 Energy Generation 14 Energy Capacity 160 Matter Stores 300 Matter Capacity 300 Sight Range 16 Robot Scan Range 14 Terrain Scan Density 10 Evasion (%) 55 Targeting Accuracy 6 Item Schematics ----------------- Imp. Hover Unit | -8/Materials | Scanalyzed Robot Schematics ------------------ None Fabricated ------------ Nothing Alien Tech Used ----------------- None Achievements -------------- None Challenges ------------ None Game ------ Seed WardroneCoilLegs Manual? 0 Play Time 00:38:23 Cumulative 13.4 hours Start 2024.04.02 @ 15:46:27 End 2024.04.02 @ 16:23:34 Sessions 1 Manual Loads 0 Difficulty Rogue Special Mode None Game No. 24 Rogue 24 Adventurer 0 Explorer 0 Win Type - Total 0 Types 0/0/0/0/0/0/0/0/0 Lore% 9 Gallery% 20 Achievement% 18 Wizard Run 0 Options --------- Layout 0 ASCII 0 Keyboard 0 Movement Mouse Keybinds 0 Fullscreen 1 Font 24/Smallcaps Map View 76x50 Zoom Use 0% Tactical HUD 1 Map Filters NONE Filters NONE Steam 1 RUN: d64e9a37-928f-4b4a-87f2-e7e24312e468